Cogmind - Beta 15 @@@ ROGUE MODE // 2025.06.09 @ 23:12:34 Player: morimori Result: Destroyed self with Mini Grenade Launcher Performance ------------- Evolutions (0) 0 Regions Visited (2) 400 Robots Destroyed (23) 115 Value Destroyed (406) 406 Prototype IDs (0) 0 Alien Tech Used (0) 0 Bonus (0) 0 TOTAL SCORE: 921 Bonus ------- None Cogmind --------- Core Integrity 0/250 Matter 290/300 Energy 250/250 System Corruption 1% Temperature Cool (0) Movement Rolling (120) Ox2 Location -10/Mines Parts ------- > --- POWER (1) -------- Ion Engine > --- PROPULSION (2) --- Wheel Compact Wheel > --- UTILITY (2) ------ High-capacity Storage Unit Medium Armor Plating > --- WEAPON (2) ------- Light Cannon Mini Grenade Launcher > --- INVENTORY (20) --- Ion Engine Light Nuclear Core Wheel Compact Wheel Compact Wheel Hover Unit Hover Unit Combat Airjet Combat Airjet Heat Sink Large Storage Unit Visual Processing Unit Seismic Detector Launcher Guidance Computer Improved Light Armor Plating Particle Gun Particle Gun Particle Gun Particle Gun Light Assault Rifle Peak State ------------ > --- POWER ------------ Ion Engine > --- PROPULSION ------- Wheel Compact Wheel > --- UTILITY ---------- High-capacity Storage Unit Medium Armor Plating > --- WEAPON ----------- Light Cannon Mini Grenade Launcher > --- INVENTORY -------- Ion Engine Light Nuclear Core Wheel Compact Wheel Compact Wheel Hover Unit Hover Unit Combat Airjet Combat Airjet Heat Sink Large Storage Unit Visual Processing Unit Seismic Detector Launcher Guidance Computer Improved Light Armor Plating Particle Gun Particle Gun Particle Gun Particle Gun Light Assault Rifle [Rating: 13] Favorites ----------- Power Ion Engine Engine Ion Engine Propulsion Compact Wheel Wheel Compact Wheel Utility High-capacity Storage Unit Device Seismic Detector Storage High-capacity Storage Unit Protection Medium Armor Plating Weapon Assault Rifle Energy Gun Small Laser Ballistic Gun Assault Rifle Ballistic Cannon Light Cannon Launcher Mini Grenade Launcher Build | -11 -10 -10 ------- Run | Yrd Mat Min Slots Evolved . | . . . Power . | . . . Propulsion . | . . . Utility . | . . . Weapon . | . . . Parts Attached 25 | 7 7 11 Power 3 | 1 2 . Engine 3 | 1 2 . Core . | . . . Reactor . | . . . Propulsion 4 | 2 . 2 Treads . | . . . Leg . | . . . Wheel 4 | 2 . 2 Hover . | . . . Flight . | . . . Utility 9 | 2 3 4 Device 1 | 1 . . Storage 3 | 1 2 . Processor . | . . . Hackware . | . . . Protection 5 | . 1 4 Artifact . | . . . Weapon 9 | 2 2 5 Energy Gun 3 | 1 1 1 Energy Cannon . | . . . Ballistic Gun 4 | 1 . 3 Ballistic Cannon 1 | . 1 . Launcher 1 | . . 1 Special Weapon . | . . . Impact Weapon . | . . . Slashing Weapon . | . . . Piercing Weapon . | . . . Special Melee Weapon . | . . . Unidentified Prototypes . | . . . Parts Lost 9 | . 1 8 Power 1 | . 1 . Propulsion 1 | . . 1 Utility 4 | . . 4 Weapon 3 | . . 3 Highest Loss Streak 6 | . 1 6 To Critical Strikes . | . . . Average Backups 14 | 2 13 18 Power 1 | . 2 2 Propulsion 3 | 1 2 4 Utility 4 | . 4 6 Weapon 4 | . 4 5 Tool/Special . | . . . Unused Backups 16 | 1 3 12 Power 3 | . 2 1 Propulsion 7 | 1 . 6 Utility 3 | . . 3 Weapon 3 | . 1 2 Tool/Special . | . . . Average Slot Usage (%) 99 | . 99 99 Engine 13 | . 13 14 Wheel 27 | . 28 27 Device 4 | . 9 . Storage 14 | . 14 14 Protection 8 | . 4 13 Energy Gun 5 | . 6 5 Ballistic Gun 14 | . 14 15 Ballistic Cannon 6 | . 7 4 Launcher 1 | . . 2 Peak Build Rating 13 | 7 11 13 Average Rating 9 | 5 8 10 On Entrance 5 | . 7 9 Naked Turns . | . . . Heaviest Build 57 | 12 57 57 Greatest Support 26 | 26 26 26 Greatest Overweight (x) 3 | . 2 3 Average Overweight (x) 1 | . 1 2 Largest Inventory Capacity 20 | 8 20 20 Average Capacity 17 | 7 16 20 Most Carried 20 | 6 18 20 Average Carried 15 | 2 13 18 Final Capacity 20 | 8 20 20 Final Carried 20 | 5 18 20 Class Distribution -------------------- 87% | Mutant 12% | Scavenger-Mutant Dominant Class ---------------- Mutant | -10/Materials Mutant | -10/Mines Resources | -11 -10 -10 ----------- Run | Yrd Mat Min Matter Collected 867 | 300 286 281 Remotely . | . . . Salvage Created 829 | 152 406 271 Parts 45 | 9 19 17 Haulers Intercepted 1 | . 1 . Recyclers Shooed 2 | 1 . 1 Parts Field Recycled . | . . . Retrieved Matter . | . . . Parts Self-Destructed . | . . . Prevented . | . . . Kills | -11 -10 -10 ------- Run | Yrd Mat Min Combat Hostiles Destroyed 20 | . 6 14 Guns 13 | . 1 12 Cannons 6 | . 5 1 AOE 1 | . . 1 Classes Destroyed 7 | 2 3 2 Tunneler 3 | 3 . . Hauler 1 | . 1 . Recycler 3 | 1 1 1 Watcher 2 | . 2 . Swarmer 8 | . . 8 Grunt 6 | . 6 . Assembled 6 | . . 6 Best Kill Streak 4 | 4 4 3 Combat Bots Only 4 | . 4 3 Max Kills in Single Turn 1 | 1 1 1 Gunslinging . | . . . Exploded 1 | . . 1 Melee . | . . . Uniques/NPCs Destroyed . | . . . Combat | -11 -10 -10 -------- Run | Yrd Mat Min Hostile Shots Fired 100 | . 20 80 Missed 19 | . 3 16 Hits 81 | . 17 64 Melee 22 | . . 22 Projectile 59 | . 17 42 AOE 2 | . . 2 Critical Strikes 2 | . 1 1 Damage Taken 1317 | . 246 1071 Core 254 | . 17 237 Absorbed by Shields . | . . . Core Remaining (%) 100 | 100 . . Volleys Fired 91 | 10 31 50 Largest 2 | 2 2 2 Hottest 85 | 60 85 85 Shots Fired 173 | 20 61 92 Gun 130 | 20 39 71 Cannon 39 | . 22 17 Launcher 4 | . . 4 Special . | . . . Kinetic 135 | 10 53 72 Thermal 34 | 10 8 16 Explosive 4 | . . 4 Electromagnetic . | . . . Robot Hit Streak 8 | 6 8 5 Robot Miss Streak 9 | 2 9 4 Penetration Max . | . . . Secondary Targets 3 | . . 3 Max Gunslinging Chain 1 | . . 1 Shots Hit Robots 92 | 12 33 47 Core Hits 47 | 5 15 27 Critical Kills . | . . . Critical Parts Destroyed 1 | . . 1 Critical Strikes 2 | . 1 1 Destroy 1 | . . 1 Blast 1 | . 1 . Melee Attacks . | . . . Impact . | . . . Slashing . | . . . Piercing . | . . . Sneak Attacks . | . . . Combat Hostiles . | . . . Follow-up Attacks . | . . . Damage Inflicted 1300 | 139 504 657 Guns 807 | 139 245 423 Cannons 397 | . 259 138 Explosions 96 | . . 96 Melee . | . . . Ramming . | . . . Kinetic 928 | 63 426 439 Thermal 276 | 76 78 122 Explosive 96 | . . 96 Electromagnetic . | . . . Impact . | . . . Slashing . | . . . Piercing . | . . . Highest Corruption 1 | . . 1 Average Corruption 1 | . . 1 Corruption Purged . | . . . Corruption Blocked . | . . . Effects 4 | . . 4 Message Errors 3 | . . 3 Energy Discharges 1 | . . 1 Overload Shots . | . . . Overflow Damage 6 | . . 6 Projectiles . | . . . Explosions 6 | . . 6 Melee . | . . . Knockbacks 7 | . 1 6 Impact . | . . . Kinetic 7 | . 1 6 Secondary . | . . . Self-Inflicted Damage 39 | . . 39 Shots 1 | . . 1 Rammed . | . . . Targets Rammed . | . . . Kicked . | . . . Crushed . | . . . Highest Temperature 232 | . 167 232 Average Temperature 61 | . 78 54 Received Heat Transfer 222 | . 162 60 Effects 2 | . . 2 Interference 2 | . . 2 Siege Activations . | . . . Martial Activations . | . . . Shielding Activations . | . . . Robots Disrupted . | . . . Combat Hostiles . | . . . Robots Corrupted . | . . . Combat Hostiles . | . . . Parts Fried . | . . . Impact Corruptions . | . . . Robots Melted . | . . . Combat Hostiles . | . . . Parts Melted . | . . . Heat Transferred 657 | 175 186 296 Parts Sabotaged . | . . . Parts Stolen . | . . . Parts Stripped . | . . . Power Chain Reactions . | . . . Alert | -11 -10 -10 ------- Run | Yrd Mat Min Maximum Alert Level . | . . . Low Security (%) 100 | 100 100 100 Level 1 . | . . . Level 2 . | . . . Level 3 . | . . . Level 4 . | . . . Level 5 . | . . . High Security . | . . . Max Security . | . . . Peak Influence 119 | 5 119 79 Initial . | . . . Average 15 | 1 13 19 Influence Increases 643 | 20 332 291 Destroy 0b10 Robot/C 280 | . 120 160 Destroy 0b10 Robot/NC 50 | 20 20 10 Destroy Leader 66 | . 36 30 Successful Hack 50 | . 50 . Disable Machine 15 | . . 15 Destroy Structure 32 | . 1 31 Partial Spotted 15 | . 15 . Lose Combat Pursuer 135 | . 90 45 Influence Decreases 640 | 20 332 288 Time Decay 499 | 20 206 273 Lost Part 25 | . 10 15 Purge Threat 116 | . 116 . Squads Dispatched . | . . . Investigation . | . . . Extermination . | . . . Reinforcement . | . . . Assault . | . . . Garrison . | . . . Intercept . | . . . Searches Triggered . | . . . Construction Impeded . | . . . Haulers Reinforced . | . . . Active Scanning Responses . | . . . Cargo Convoy Interrupts . | . . . Stealth | -11 -10 -10 --------- Run | Yrd Mat Min Distress Signals 4 | . 4 . Communications Jammed . | . . . Distress Signals . | . . . Times Spotted 35 | . 15 20 Peak Tracking Total 5 | . 5 3 Tactical Retreats 6 | . 4 2 Traps | -11 -10 -10 ------- Run | Yrd Mat Min Traps Triggered 1 | . 1 . Indirectly . | . . . Trap Hack Attempts . | . . . Triggered . | . . . Disarmed . | . . . Reprogrammed . | . . . Reused . | . . . Traps Extracted . | . . . Installed . | . . . Triggered . | . . . Machines | -11 -10 -10 ---------- Run | Yrd Mat Min Machines Disabled 1 | . . 1 Max in Single Turn 1 | . . 1 Machines Repaired . | . . . Machines Dismantled . | . . . Machines Sabotaged . | . . . Overloaded Fab Kills . | . . . Hacking | -11 -10 -10 --------- Run | Yrd Mat Min Machines Accessed 10 | . 9 1 Terminals 9 | . 8 1 Fabricators . | . . . Repair Stations . | . . . Recycling Units 1 | . 1 . Scanalyzers . | . . . Garrison Access . | . . . Total Hacks 41 | . 40 1 Successful 16 | . 16 . Failed 24 | . 23 1 Catastrophic 3 | . 2 1 Database Lockouts 1 | . 1 . Manual 35 | . 34 1 Terminals 40 | . 39 1 Fabricators . | . . . Repair Stations . | . . . Recycling Units 1 | . 1 . Scanalyzers . | . . . Garrison Access . | . . . Terminal Hacks 12 | . 12 . Part Schematic 2 | . 2 . Robot Analysis 1 | . 1 . Branch Access Points 1 | . 1 . Terminal Index 1 | . 1 . Unreport Threat 1 | . 1 . Locate Traps 3 | . 3 . Registered Components 1 | . 1 . Zone Layout 2 | . 2 . Fabricator Hacks . | . . . Repair Station Hacks . | . . . Recycling Unit Hacks 1 | . 1 . Retrieve Components 1 | . 1 . Scanalyzer . | . . . Garrison Access Hacks . | . . . Unauthorized Hacks 3 | . 3 . Terminals 3 | . 3 . Botnet 2 | . 2 . Operators 1 | . 1 . Fabricators . | . . . Repair Stations . | . . . Recycling Units . | . . . Scanalyzers . | . . . Garrison Access . | . . . Data Cores Recovered . | . . . Used . | . . . Hacking Detections 8 | . 7 1 Full Trace Events . | . . . Feedback Events . | . . . Feedback Blocked . | . . . Robot Schematics Acquired . | . . . Robots Built . | . . . Authchips . | . . . Time . | . . . Total Robot Build Rating . | . . . Part Schematics Acquired 2 | . 2 . Parts Built . | . . . Authchips . | . . . Time . | . . . Total Part Build Rating . | . . . Parts Repaired . | . . . Time . | . . . Parts Recycled . | . . . Recycled Matter . | . . . Retrieved Matter . | . . . Retrieved Components 2 | . 2 . Parts Scanalyzed . | . . . Part Schematics Acquired . | . . . Parts Damaged . | . . . Bothacking | -11 -10 -10 ------------ Run | Yrd Mat Min Used RIF Installer . | . . . Robots Hacked . | . . . Non-combat . | . . . Combat . | . . . Robot Hacks Applied . | . . . Relay Couplers Released . | . . . Fabnet Peak Effective % . | . . . Robots Rewired . | . . . Allies Hacked . | . . . Hacks Repelled . | . . . Allies | -11 -10 -10 -------- Run | Yrd Mat Min Total Allies 2 | . . 2 Largest Group 2 | . . 2 Highest-Rated Group 39 | . . 39 Highest-Rated Ally 31 | . . 31 Total Orders . | . . . Ally Attacks 7 | . . 7 Total Damage 21 | . . 21 Kills 1 | . . 1 Allies Corrupted . | . . . Allies Melted . | . . . Intel | -11 -10 -10 ------- Run | Yrd Mat Min Active Infowar (turns) 754 | 10 744 . Seismic 754 | 10 744 . Robot Analysis Total 1 | . 1 . Derelict Logs Recovered 3 | . . 3 Drone Launches . | . . . Drone Recoveries . | . . . Exploration | -11 -10 -10 ------------- Run | Yrd Mat Min Turns Passed 2263 | 107 1095 1061 Spaces Moved 1624 | 53 857 714 Core 1 | 1 . . Treads . | . . . Legs . | . . . Wheels 1623 | 52 857 714 Hover . | . . . Flight . | . . . Fastest Speed 50 | 50 90 105 Average Speed 111 | 92 106 120 Slowest Speed 145 | 100 120 145 Overloaded Moves . | . . . Propulsion Burnouts . | . . . Robots Hopped . | . . . Potential Cave-ins . | . . . Cave-ins Triggered . | . . . Exploration Rate (%) 67 | 4 99 98 Regions Visited 2 Branch Regions 1 Pre-discovered Areas 1 | . . 1 Known Exits Taken 1 | . 1 . Unknown Exits Taken 1 | 1 . . Scrap Searched 1 | . . 1 Spaces Dug . | . . . Terrain Destroyed 38 | . . 38 Melee . | . . . Projectile . | . . . AOE 38 | . . 38 Terrain Rammed . | . . . Walls Destroyed . | . . . Machines Disabled . | . . . Actions | -11 -10 -10 --------- Run | Yrd Mat Min Total 1899 | 89 977 833 Wait 115 | 11 59 45 Move 1622 | 52 856 714 Hop . | . . . Pick Up 31 | 8 15 8 Fast Attach 8 | 5 2 1 Attach 10 | 2 . 8 Detach 1 | . . 1 Swap 14 | . 9 5 Drop 7 | 1 5 1 Fire 91 | 10 31 50 Melee . | . . . Ram . | . . . Kick . | . . . Crush . | . . . Escape Stasis . | . . . Rewire . | . . . Trap . | . . . Miscellaneous . | . . . Route ------- -11/Scrapyard -10/Materials (discovered 5 exits: [*Mat x3] / *Min x2) -10/Mines (discovered 3 exits: [*Mat x2] / [*Exi]) History --------- Turn | Location | Event 8 | -11/Scrapyard | Discovered new exit (range 15) 108 | -11/Scrapyard | Entered Materials 210 | -10/Materials | Central database locked down 210 | -10/Materials | Discovered new exit (range 16) 210 | -10/Materials | Discovered new exit (range 14) 317 | -10/Materials | Build established: Mutant 395 | -10/Materials | Discovered new exit (range 14) 630 | -10/Materials | Discovered new exit (range 8) 630 | -10/Materials | Identified exit to Mines 782 | -10/Materials | Discovered new exit (range 3) 1203 | -10/Materials | Entered Mines 1304 | -10/Mines | Learned Materials garrison access intel 1378 | -10/Mines | Learned Materials stockpile data 1422 | -10/Mines | Learned location of Zion (-6) 1599 | -10/Mines | Discovered new exit (range 6) 1769 | -10/Mines | Discovered new exit (range 13) 1807 | -10/Mines | Assembled infested the area 1928 | -10/Mines | Core integrity fell below 50% 1951 | -10/Mines | Core integrity fell below 20% 1983 | -10/Mines | Lost 6 parts (3u3w) 2178 | -10/Mines | Deemed a non-threat by the Exiles lab entrance 2178 | -10/Mines | Discovered new exit (range 5) 2264 | -10/Mines | Destroyed self with Mini Grenade Launcher Last Messages --------------- 02060_ Acquired 2 matter. 02062_ Acquired 21 matter. 02077_ U-05 Engineer lays Concrete. 02080_ U-05 Engineer builds a Wall. 02088_ U-05 Engineer lays Concrete. 02119_ QX8TVSM2E90RZ#Y NDNBAWGTBRR%7< 02149_ The unstable cave ceiling collapses. 02163_ ,IA,O,/RICYBQTHXI7OTN 4ZYWF2VK 02178_ "No threat detected, you may enter." 02178_ EXIT=FOUND 02222_ Acquired 5 matter. 02226_ Acquired 4 matter. 02229_ Acquired 19 matter. 02235_ Acquired Launcher Guidance Computer. 02236_ Acquired 16 matter. 02238_ R QYXP1URAEEDWBDJ%X&GKAYND# 02251_ Acquired 10 matter. 02261_ K-01 Serf knocked back. 02264_ as-87313 destroyed. 02264_ Destroyed Mining Laser. Map ----- +----------------------------------------------------+ | ????# %! ![= ## #?? | | ????#!!######### # #?? | | ????# %#???????# # ##?? | | ??###!/#??????## ## ### ##?? | | ?## #??????# ## # # ###" ### | | ?# ##??????# ##### ##?# | | ?# ##?????## #??## ##??## | | ?# ##??????# #### #????#### | | ?# #???????# # % #???????## | | ?# #????????## #????????# | | ?## ###?????????## % #????????## | | ??#### #????????????## | % #?????????# | | ??# #?????????????## ! #?????????? | | ??# #?????????????## #?##??????? | | ??# ####????????????##!% ## #??????? | | ??# #??????????######%%% #??????? | | ??# #??????????# %% * ! ##?????? | | ??# ############ %## *% #?????? | | ??# ## ### ### %####### | | ??# ## %#?## ## | | ??## ##% ## #??##### | | ???# ## *=##k #??????# # # | | ???## ##?#%*##t*#??????#### ######### | | ????######?##%* *!#?????????# ##???????? | | ??????????##%!<==%*#????????## #????????? | | ?????????## =%! @*#??????### #?????#### | | ???????### ! %t %!#??????# ##????## | | ???????# % ##?????# ###????## | | ???????## ##????# ##?????## | | ????????### ###### #??????# | | ??????????## #??????# | | ???????????# #??????## | | ???????????## ########???????## | | ???????????## ##???????????????# | | ???????????# u########??????????## | | ???????????# #??????????## | | ???????????## #???????#### | | ????????????# ##### #??????## | | ??????????### #???# #??##### "" | | ??????????# #???# #### "" | | ??????????# # ##???# "" | | ?????????? #######????# | | ??????????##???????????####### | | ?????????????????????????????#### # | | ????????????????????????????????## # | | ?????????????????????????????????# | | ?????????????????????????????????# | | ?????????????????????????????????# | | ?????????????????????????????????## | | ???????????????##################### ## | +----------------------------------------------------+ Best States ------------- Heat Dissipation 25 Energy Generation 10 Energy Capacity 250 Matter Stores 300 Matter Capacity 300 Sight Range 16 Terrain Scan Density 10 Armor Coverage 225 Evasion (%) 42 Item Schematics ----------------- Hcp. Storage Unit | -10/Materials | Hacked Huge Storage Unit | -10/Materials | Hacked Robot Schematics ------------------ None Fabricated ------------ Nothing Repaired ---------- Nothing Alien Tech Used ----------------- None Achievements -------------- None Challenges ------------ None Game ------ Seed SensorGuidedMatrix Manual? 0 Play Time 00:23:30 Cumulative 403.7 hours Start 2025.06.09 @ 22:44:13 End 2025.06.09 @ 23:12:34 Sessions 1 Manual Loads 0 Difficulty Rogue Special Mode None Game No. 207 Rogue 207 Adventurer 0 Explorer 0 Win Type - Total 5 Types 5/0/0/0/0/0/0/0/0/0 Lore% 62 Gallery% 67 Achievement% 63 Wizard Run 0 Options --------- Layout 0 ASCII 0 Keyboard 1 Movement Vi Keybinds 0 Fullscreen 2 Font 18/SmallcapsGlow Map View 76x50 Zoom Use 0% Tactical HUD 1 Map Filters NONE Filters NONE Steam 1 RUN: 1eca8aef-b85f-4a67-811f-0be052e5bae5